Workbook

Sheet Event Budget Summary
A1: Project Title | B1: Substance
A3: Show Date | B3: 6th November 2016
A5: Project Manager | B5: Martin Atkinson
A7: Client | B7: Hull 2017
A10: EVENT BUDGET | D10: =G17 -> 4000
D11: Predicted | E11: Current Spend | G11: Income | H11: Source
A12: Artist Fees | D12: =D41 -> 1775 | E12: =E41 -> 1775 | G12: 4000 | H12: Hull2017 Allocated
A13: Technical Hires | D13: =D54 -> 1200 | E13: =E54 -> 1290.9
A14: Rider | D14: =D67 -> 400 | E14: =E67 -> 368.5483
A15: Venue Hires | D15: =D80 -> 45 | E15: =E80 -> 37.5
A16: Crew | D16: =D93 -> 220 | E16: =E93 -> 300
A17: Accomodation | D17: =D106 -> 64 | E17: =E106 -> 64.16 | G17: =SUM(G12:G15) -> 4000
A18: Travel | D18: =D119 -> 179 | E18: =E119 -> 149.16
A19: H | D19: =D132 -> 0 | E19: =E132 -> 0
D21: =SUM(D12:D19) -> 3883 | E21: =SUM(E12:E19) -> 3985.2683
B22: Spreadsheet Checker | D22: =SUM((SUM(D30:D40))+(SUM(D43:D53))+(SUM(D56:D66))+(SUM(D69:D79))+(SUM(D82:D92))+(SUM(D95:D105))+(SUM(D108:D118))+(SUM(D121:D131))) -> 3883 | E22: =SUM((SUM(E30:E40))+(SUM(E43:E53))+(SUM(E56:E66))+(SUM(E69:E79))+(SUM(E82:E92))+(SUM(E95:E105))+(SUM(E108:E118))+(SUM(E121:E131))) -> 3985.2683
D23: =IF(D21-D22=0, "Good", "Bad") -> Good | E23: =IF(E21-E22=0, "Good", "Bad") -> Good
A24: Contribution to Core Costs inc Admin & Insurance | C24: 0 | D24: =SUM(D10)*C24 -> 0
A25: Total Budget Costs | D25: =SUM(D12:D19) -> 3883
A26: Overall Contingency | C26: 0 | D26: =D10*C26 -> 0
A28: OVER / UNDER BUDGET | D28: =D10-D21-D26 -> 117 | E28: =D10-E135 -> 14.7317 | F28: Will turn red if over budget!
A30: DEPARTMENT | B30: ITEM | C30: SUPPLIER | D30: BUDGET | E30: ACTUAL NET | F30: VAT | G30: GROSS | H30: NOTES | I30: Receipt No | J30: Invoice No | K30: Signoff Date | L30: Paid Date
A31: =A12 -> Artist Fees | B31: The Magnetic North | D31: 1400 | E31: 1400 | F31: 0 | G31: =E31+F31 -> 1400
B32: Will Alsop | D32: 375 | E32: 375 | F32: 0 | G32: 375 | M32: 750 in total but 375 going towards article.
B33: Guest 2? | F33: =E33*0.2 -> 0 | G33: 0
F34: 0 | G34: 0
F35: 0 | G35: 0
F36: 0 | G36: 0
F37: 0 | G37: 0
F38: 0 | G38: 0
F39: 0 | G39: 0
F40: 0 | G40: 0
D41: =SUM(D31:D40) -> 1775 | E41: =SUM(E31:E40) -> 1775
A43: DEPARTMENT | B43: ITEM | C43: SUPPLIER | D43: BUDGET | E43: ACTUAL NET | F43: VAT | G43: GROSS | H43: NOTES | I43: Receipt No | J43: Invoice No | K43: Signoff Date | L43: Paid Date
A44: =A13 -> Technical Hires | B44: Sound Additionals/Mac Hire/Board Upgrade | C44: ITSL | D44: 1050 | E44: =750+540.9 -> 1290.9 | F44: =E44*0.2 -> 258.18 | G44: =E44+F44 -> 1549.08
F45: =E45*0.2 -> 0 | G45: =E45+F45 -> 0
B46: Stage Extension | C46: ITSL | D46: 150 | F46: 0 | G46: 0 | H46: incuded in Sound additionals ITSL
F47: 0 | G47: 0
F48: 0 | G48: 0
F49: 0 | G49: 0
F50: 0 | G50: 0
F51: 0 | G51: 0
F52: 0 | G52: 0
F53: 0 | G53: 0
D54: =SUM(D44:D53) -> 1200 | E54: =SUM(E44:E53) -> 1290.9
A56: DEPARTMENT | C56: SUPPLIER | D56: BUDGET | E56: ACTUAL NET | F56: VAT | G56: GROSS | H56: NOTES | I56: Receipt No | J56: Invoice No | K56: Signoff Date | L56: Paid Date
A57: =A14 -> Rider | B57: TMN Rider | C57: various | D57: 150 | E57: 45.17 | F57: =E57*0.2 -> 9.034 | G57: =E57+F57 -> 54.204
E58: 182.2083 | F58: =E58*0.2 -> 36.44166 | G58: =E58+F58 -> 218.64996
B59: VIP Hospitality | D59: 250 | E59: 141.17 | F59: 28.234 | G59: 169.404
F60: 0 | G60: 0
F61: 0 | G61: 0
F62: 0 | G62: 0
F63: 0 | G63: 0
F64: 0 | G64: 0
F65: 0 | G65: 0
F66: 0 | G66: 0
D67: =SUM(D57:D66) -> 400 | E67: =SUM(E57:E66) -> 368.5483
A69: DEPARTMENT | B69: ITEM | C69: SUPPLIER | D69: BUDGET | E69: ACTUAL NET | F69: VAT | G69: GROSS | H69: NOTES | I69: Receipt No | J69: Invoice No | K69: Signoff Date | L69: Paid Date
A70: =A15 -> Venue Hires | B70: Venue Hire | C70: The Polar Bear | F70: =E70*0.2 -> 0 | G70: =E70+F70 -> 0
F71: =E71*0.2 -> 0 | G71: =E71+F71 -> 0
B72: Greenroom | C72: Marlborough Arms | D72: 45 | E72: 37.5 | F72: 7.5 | G72: 45
F73: 0 | G73: 0
F74: 0 | G74: 0
F75: 0 | G75: 0
F76: 0 | G76: 0
F77: 0 | G77: 0
F78: 0 | G78: 0
F79: 0 | G79: 0
D80: =SUM(D70:D79) -> 45 | E80: =SUM(E70:E79) -> 37.5
A82: DEPARTMENT | B82: ITEM | C82: SUPPLIER | D82: BUDGET | E82: ACTUAL NET | F82: VAT | G82: GROSS | H82: NOTES | I82: Receipt No | J82: Invoice No | K82: Signoff Date | L82: Paid Date
A83: =A16 -> Crew | B83: Tech Included with ITSL | F83: =E83*0.2 -> 0 | G83: =E83+F83 -> 0
F84: 0 | G84: 0
B85: Security | D85: 100 | E85: 180 | F85: 36 | G85: 216
F86: 0 | G86: 0
B87: DJ | D87: 120 | E87: 120 | F87: 24 | G87: 120
F88: 0 | G88: 0
F89: 0 | G89: 0
F90: 0 | G90: 0
F91: 0 | G91: 0
F92: 0 | G92: 0
D93: =SUM(D83:D92) -> 220 | E93: =SUM(E83:E92) -> 300
A95: DEPARTMENT | B95: ITEM | C95: SUPPLIER | D95: BUDGET | E95: ACTUAL NET | F95: VAT | G95: GROSS | H95: NOTES | I95: Receipt No | J95: Invoice No | K95: Signoff Date | L95: Paid Date
A96: =A17 -> Accomodation | B96: Will Alsop | D96: 64 | E96: 64.16 | F96: =E96*0.2 -> 12.832 | G96: =F96+E96 -> 76.992
F97: =E97*0.2 -> 0 | G97: =F97+E97 -> 0
F98: 0 | G98: =F98+E98 -> 0
F99: 0 | G99: =F99+E99 -> 0
F100: 0 | G100: =F100+E100 -> 0
F101: 0 | G101: 0
F102: 0 | G102: 0
F103: 0 | G103: 0
F104: 0 | G104: 0
F105: 0 | G105: 0
D106: =SUM(D96:D105) -> 64 | E106: =SUM(E96:E105) -> 64.16
A108: DEPARTMENT | B108: ITEM | C108: SUPPLIER | D108: BUDGET | E108: ACTUAL NET | F108: VAT | G108: GROSS | H108: NOTES | I108: Receipt No | J108: Invoice No | K108: Signoff Date | L108: Paid Date
A109: =A18 -> Travel | B109: Will Alsop Travel | D109: 179 | E109: 149.16 | F109: =E109*0.2 -> 29.832 | G109: =E109+F109 -> 178.992
F110: =E110*0.2 -> 0 | G110: =E110+F110 -> 0
F111: =E111*0.2 -> 0 | G111: 0
F112: 0 | G112: 0
F113: 0 | G113: 0
F114: 0 | G114: 0
F115: 0 | G115: 0
F116: 0 | G116: 0
F117: 0 | G117: 0
F118: 0 | G118: 0
D119: =SUM(D109:D118) -> 179 | E119: =SUM(E109:E118) -> 149.16
A121: DEPARTMENT | B121: ITEM | C121: SUPPLIER | D121: BUDGET | E121: ACTUAL NET | F121: VAT | G121: GROSS | H121: NOTES | I121: Receipt No | J121: Invoice No | K121: Signoff Date | L121: Paid Date
A122: =A19 -> H | F122: =E122*0.2 -> 0 | G122: =E122*F122 -> 0
F123: =E123*0.2 -> 0 | G123: =E123*F123 -> 0
F124: 0 | G124: 0
F125: 0 | G125: 0
F126: 0 | G126: 0
F127: 0 | G127: 0
F128: 0 | G128: 0
F129: 0 | G129: 0
F130: 0 | G130: 0
F131: 0 | G131: 0
D132: =SUM(D122:D131) -> 0 | E132: =SUM(E122:E131) -> 0
C135: TOTAL BUDGET COSTS: | D135: =SUM(D41+D54+D67+D80+D93+D106+D119+D132) -> 3883 | E135: =SUM(E41+E54+E67+E80+E93+E106+E119+E132) -> 3985.2683
C137: Over/Under Budget | D137: =D28 -> 117

Sheet Breakdown 1
A1: Show Date | B1: ='Event Budget Summary'!B3:C3 -> 6th November 2016
A3: Project Manager | B3: ='Event Budget Summary'!B5:C5 -> Martin Atkinson
A5: Client | B5: ='Event Budget Summary'!B7:C7 -> Hull 2017
A8: BREAKDOWN 1 | E8: =D8 -> 0 | G8: =E8*1.2 -> 0
D9: Predicted | G9: Current Spend
A10: A | D10: =D36 -> 0 | E10: =E36 -> 0 | F10: =F36 -> 0 | G10: =G36 -> 0
A11: B | D11: =D44 -> 0 | E11: =E44 -> 0 | F11: =F44 -> 0 | G11: =G44 -> 0
A12: C | D12: =D49 -> 0 | E12: =E49 -> 0 | F12: =F49 -> 0 | G12: =G49 -> 0
A13: D | D13: =D61 -> 0 | E13: =E61 -> 0 | F13: =F61 -> 0 | G13: =G61 -> 0
A14: E | D14: =D73 -> 0 | E14: =E73 -> 0 | F14: =F73 -> 0 | G14: =G73 -> 0
A15: F | D15: =D83 -> 0 | E15: =E83 -> 0 | F15: =F83 -> 0 | G15: =G83 -> 0
A16: G | D16: =D97 -> 0 | E16: =E97 -> 0 | F16: =F97 -> 0 | G16: =G97 -> 0
A17: H | D17: =D109 -> 0 | E17: =E109 -> 0 | F17: =F109 -> 0 | G17: =G109 -> 0
D19: =SUM(D10:D17) -> 0 | E19: =SUM(E10:E17) -> 0 | F19: =SUM(F10:F17) -> 0 | G19: =SUM(G10:G17) -> 0
B20: Spreadsheet Checker | D20: =SUM(D27:D36)+SUM(D40:D49)+SUM(D53:D62)+SUM(D66:D75)+SUM(D79:D88)+SUM(D92:D101)+SUM(D105:D114)+SUM(D118:D127) -> 0 | E20: =SUM(E27:E36)+SUM(E40:E49)+SUM(E53:E62)+SUM(E66:E75)+SUM(E79:E88)+SUM(E92:E101)+SUM(E105:E114)+SUM(E118:E127) -> 0 | F20: =SUM(F27:F36)+SUM(F40:F49)+SUM(F53:F62)+SUM(F66:F75)+SUM(F79:F88)+SUM(F92:F101)+SUM(F105:F114)+SUM(F118:F127) -> 0 | G20: =SUM(G27:G36)+SUM(G40:G49)+SUM(G53:G62)+SUM(G66:G75)+SUM(G79:G88)+SUM(G92:G101)+SUM(G105:G114)+SUM(G118:G127) -> 0
D21: =IF(D19-D20=0, "Good", "Bad") -> Good | E21: =IF(E19-E20=0, "Good", "Bad") -> Good | F21: =IF(F19-F20=0, "Good", "Bad") -> Good | G21: =IF(G19-G20=0, "Good", "Bad") -> Good
A22: Overall Contingency | C22: 0 | D22: =SUM(D8)*C22 -> 0
A24: OVER / UNDER BUDGET | D24: =SUM(D8-D19-D22) -> 0 | E24: =SUM(E8-E19-E22) -> 0 | G24: =SUM(G8-G19-G22) -> 0 | H24: Will turn red if over budget!
A26: DEPARTMENT | B26: ITEM | C26: SUPPLIER | D26: BUDGET | E26: ACTUAL NET | F26: VAT | G26: GROSS | H26: NOTES | I26: Receipt No | J26: Invoice No | K26: Signoff Date | L26: Paid Date
A27: =A10 -> A | F27: =E27*0.2 -> 0 | G27: =E27+F27 -> 0
F28: =E28*0.2 -> 0 | G28: =E28+F28 -> 0
F29: 0 | G29: 0
F30: 0 | G30: 0
F31: 0 | G31: 0
F32: 0 | G32: 0
F33: 0 | G33: 0
F34: 0 | G34: 0
F35: 0 | G35: 0
F36: 0 | G36: 0
D37: =SUM(D27:D36) -> 0 | E37: =SUM(E27:E36) -> 0
A39: DEPARTMENT | B39: ITEM | C39: SUPPLIER | D39: BUDGET | E39: ACTUAL NET | F39: VAT | G39: GROSS | H39: NOTES | I39: Receipt No | J39: Invoice No | K39: Signoff Date | L39: Paid Date
A40: =A11 -> B | F40: =E40*0.2 -> 0 | G40: =E40+F40 -> 0
F41: =E41*0.2 -> 0 | G41: =E41+F41 -> 0
F42: 0 | G42: 0
F43: 0 | G43: 0
F44: 0 | G44: 0
F45: 0 | G45: 0
F46: 0 | G46: 0
F47: 0 | G47: 0
F48: 0 | G48: 0
F49: 0 | G49: 0
D50: =SUM(D40:D49) -> 0 | E50: =SUM(E40:E49) -> 0
A52: DEPARTMENT | C52: SUPPLIER | D52: BUDGET | E52: ACTUAL NET | F52: VAT | G52: GROSS | H52: NOTES | I52: Receipt No | J52: Invoice No | K52: Signoff Date | L52: Paid Date
A53: =A12 -> C | F53: =E53*0.2 -> 0 | G53: =E53+F53 -> 0
F54: =E54*0.2 -> 0 | G54: =E54+F54 -> 0
F55: 0 | G55: 0
F56: 0 | G56: 0
F57: 0 | G57: 0
F58: 0 | G58: 0
F59: 0 | G59: 0
F60: 0 | G60: 0
F61: 0 | G61: 0
F62: 0 | G62: 0
D63: =SUM(D53:D62) -> 0 | E63: =SUM(E53:E62) -> 0
A65: DEPARTMENT | B65: ITEM | C65: SUPPLIER | D65: BUDGET | E65: ACTUAL NET | F65: VAT | G65: GROSS | H65: NOTES | I65: Receipt No | J65: Invoice No | K65: Signoff Date | L65: Paid Date
A66: =A13 -> D | F66: =E66*0.2 -> 0 | G66: =E66+F66 -> 0
F67: =E67*0.2 -> 0 | G67: =E67+F67 -> 0
F68: 0 | G68: 0
F69: 0 | G69: 0
F70: 0 | G70: 0
F71: 0 | G71: 0
F72: 0 | G72: 0
F73: 0 | G73: 0
F74: 0 | G74: 0
F75: 0 | G75: 0
D76: =SUM(D66:D75) -> 0 | E76: =SUM(E66:E75) -> 0
A78: DEPARTMENT | B78: ITEM | C78: SUPPLIER | D78: BUDGET | E78: ACTUAL NET | F78: VAT | G78: GROSS | H78: NOTES | I78: Receipt No | J78: Invoice No | K78: Signoff Date | L78: Paid Date
A79: =A14 -> E | F79: =E79*0.2 -> 0 | G79: =E79+F79 -> 0
F80: 0 | G80: =E80+F80 -> 0
F81: 0 | G81: 0
F82: 0 | G82: 0
F83: 0 | G83: 0
F84: 0 | G84: 0
F85: 0 | G85: 0
F86: 0 | G86: 0
F87: 0 | G87: 0
F88: 0 | G88: 0
D89: =SUM(D79:D88) -> 0 | E89: =SUM(E79:E88) -> 0
A91: DEPARTMENT | B91: ITEM | C91: SUPPLIER | D91: BUDGET | E91: ACTUAL NET | F91: VAT | G91: GROSS | H91: NOTES | I91: Receipt No | J91: Invoice No | K91: Signoff Date | L91: Paid Date
A92: =A15 -> F | F92: =E92*0.2 -> 0 | G92: =F92+E92 -> 0
F93: =E93*0.2 -> 0 | G93: =F93+E93 -> 0
F94: 0 | G94: 0
F95: 0 | G95: 0
F96: 0 | G96: 0
F97: 0 | G97: 0
F98: 0 | G98: 0
F99: 0 | G99: 0
F100: 0 | G100: 0
F101: 0 | G101: 0
D102: =SUM(D92:D101) -> 0 | E102: =SUM(E92:E101) -> 0
A104: DEPARTMENT | B104: ITEM | C104: SUPPLIER | D104: BUDGET | E104: ACTUAL NET | F104: VAT | G104: GROSS | H104: NOTES | I104: Receipt No | J104: Invoice No | K104: Signoff Date | L104: Paid Date
A105: =A16 -> G | F105: =E105*0.2 -> 0 | G105: =E105+F105 -> 0
F106: =E106*0.2 -> 0 | G106: =E106+F106 -> 0
F107: 0 | G107: 0
F108: 0 | G108: 0
F109: 0 | G109: 0
F110: 0 | G110: 0
F111: 0 | G111: 0
F112: 0 | G112: 0
F113: 0 | G113: 0
F114: 0 | G114: 0
D115: =SUM(D105:D114) -> 0 | E115: =SUM(E105:E114) -> 0
A117: DEPARTMENT | B117: ITEM | C117: SUPPLIER | D117: BUDGET | E117: ACTUAL NET | F117: VAT | G117: GROSS | H117: NOTES | I117: Receipt No | J117: Invoice No | K117: Signoff Date | L117: Paid Date
A118: =A17 -> H | F118: =E118*0.2 -> 0 | G118: =E118*F118 -> 0
F119: =E119*0.2 -> 0 | G119: =E119*F119 -> 0
F120: 0 | G120: 0
F121: 0 | G121: 0
F122: 0 | G122: 0
F123: 0 | G123: 0
F124: 0 | G124: 0
F125: 0 | G125: 0
F126: 0 | G126: 0
F127: 0 | G127: 0
D128: =SUM(D118:D127) -> 0 | E128: =SUM(E118:E127) -> 0
C131: TOTAL BUDGET COSTS: | D131: =SUM(D37+D50+D63+D76+D89+D102+D115+D128) -> 0 | E131: =SUM(E37+E50+E63+E76+E89+E102+E115+E128) -> 0
C133: Over/Under Budget | D133: =D24 -> 0

Sheet Float Spend
A1: Show Date | B1: ='Event Budget Summary'!B3:C3 -> 6th November 2016
A3: Project Manager | B3: ='Event Budget Summary'!B5:C5 -> Martin Atkinson
A5: Client | B5: ='Event Budget Summary'!B7:C7 -> Hull 2017
A8: FLOAT SPEND | C8: =SUM(C10:C17) -> 0 | D8: =SUM(D10:D17) -> 0 | E8: =SUM(E10:E17) -> 0 | F8: =SUM(F10:F17) -> 0
C9: Float In | D9: Spend Net | E9: Spend VAT | F9: Total Spend
A10: Float 1 | D10: =D36 -> 0 | E10: =E36 -> 0 | F10: =F36 -> 0
A11: Float 2 | D11: =D49 -> 0 | E11: =E49 -> 0 | F11: =F49 -> 0
A12: Float 3 | D12: =D62 -> 0 | E12: =E62 -> 0 | F12: =F62 -> 0
A13: Float 4 | D13: =D75 -> 0 | E13: =E75 -> 0 | F13: =F75 -> 0
A14: Float 5 | D14: =D88 -> 0 | E14: =E88 -> 0 | F14: =F88 -> 0
A15: Float 6 | D15: =D101 -> 0 | E15: =E101 -> 0 | F15: =F101 -> 0
A16: Float 7 | D16: =D114 -> 0 | E16: =E114 -> 0 | F16: =F114 -> 0
A17: Float 8 | D17: =D127 -> 0 | E17: =E127 -> 0 | F17: =F127 -> 0
D19: =SUM(D10:D17) -> 0 | E19: =SUM(E10:E17) -> 0 | F19: =SUM(F10:F17) -> 0
B20: Spreadsheet Checker | D20: =SUM(D26:D35)+SUM(D39:D48)+SUM(D52:D61)+SUM(D65:D74)+SUM(D78:D87)+SUM(D91:D100)+SUM(D104:D113)+SUM(D117:D126) -> 0 | E20: =SUM(E26:E35)+SUM(E39:E48)+SUM(E52:E61)+SUM(E65:E74)+SUM(E78:E87)+SUM(E91:E100)+SUM(E104:E113)+SUM(E117:E126) -> 0 | F20: =SUM(F26:F35)+SUM(F39:F48)+SUM(F52:F61)+SUM(F65:F74)+SUM(F78:F87)+SUM(F91:F100)+SUM(F104:F113)+SUM(F117:F126) -> 0
D21: =IF(D19-D20=0, "Good", "Bad") -> Good | E21: =IF(E19-E20=0, "Good", "Bad") -> Good | F21: =IF(F19-F20=0, "Good", "Bad") -> Good
A23: OVER / UNDER BUDGET | G23: Will turn red if over budget!
A25: DEPARTMENT | B25: ITEM | C25: SUPPLIER | D25: ACTUAL NET | E25: VAT | F25: GROSS | G25: NOTES | H25: Receipt No
A26: =A10 -> Float 1 | E26: =D26*0.2 -> 0 | F26: =D26+E26 -> 0
E27: =D27*0.2 -> 0 | F27: =D27+E27 -> 0
E28: 0 | F28: 0
E29: 0 | F29: 0
E30: 0 | F30: 0
E31: 0 | F31: 0
E32: 0 | F32: 0
E33: 0 | F33: 0
E34: 0 | F34: 0
E35: 0 | F35: 0
D36: =SUM(D26:D35) -> 0 | E36: =SUM(E26:E35) -> 0 | F36: =SUM(F26:F35) -> 0
A38: DEPARTMENT | B38: ITEM | C38: SUPPLIER | D38: ACTUAL NET | E38: VAT | F38: GROSS | G38: NOTES | H38: Receipt No
A39: =A11 -> Float 2 | E39: =D39*0.2 -> 0 | F39: =D39+E39 -> 0
E40: =D40*0.2 -> 0 | F40: =D40+E40 -> 0
E41: 0 | F41: 0
E42: 0 | F42: 0
E43: 0 | F43: 0
E44: 0 | F44: 0
E45: 0 | F45: 0
E46: 0 | F46: 0
E47: 0 | F47: 0
E48: 0 | F48: 0
D49: =SUM(D39:D48) -> 0 | E49: =SUM(E39:E48) -> 0 | F49: =SUM(F39:F48) -> 0
A51: DEPARTMENT | C51: SUPPLIER | D51: ACTUAL NET | E51: VAT | F51: GROSS | G51: NOTES | H51: Receipt No
A52: =A12 -> Float 3 | E52: =D52*0.2 -> 0 | F52: =D52+E52 -> 0
E53: =D53*0.2 -> 0 | F53: =D53+E53 -> 0
E54: 0 | F54: 0
E55: 0 | F55: 0
E56: 0 | F56: 0
E57: 0 | F57: 0
E58: 0 | F58: 0
E59: 0 | F59: 0
E60: 0 | F60: 0
E61: 0 | F61: 0
D62: =SUM(D52:D61) -> 0 | E62: =SUM(E52:E61) -> 0 | F62: =SUM(F52:F61) -> 0
A64: DEPARTMENT | B64: ITEM | C64: SUPPLIER | D64: ACTUAL NET | E64: VAT | F64: GROSS | G64: NOTES | H64: Receipt No
A65: =A13 -> Float 4 | E65: =D65*0.2 -> 0 | F65: =D65+E65 -> 0
E66: =D66*0.2 -> 0 | F66: =D66+E66 -> 0
E67: 0 | F67: 0
E68: 0 | F68: 0
E69: 0 | F69: 0
E70: 0 | F70: 0
E71: 0 | F71: 0
E72: 0 | F72: 0
E73: 0 | F73: 0
E74: 0 | F74: 0
D75: =SUM(D65:D74) -> 0 | E75: =SUM(E65:E74) -> 0 | F75: =SUM(F65:F74) -> 0
A77: DEPARTMENT | B77: ITEM | C77: SUPPLIER | D77: ACTUAL NET | E77: VAT | F77: GROSS | G77: NOTES | H77: Receipt No
A78: =A14 -> Float 5 | E78: =D78*0.2 -> 0 | F78: =D78+E78 -> 0
E79: 0 | F79: =D79+E79 -> 0
E80: 0 | F80: 0
E81: 0 | F81: 0
E82: 0 | F82: 0
E83: 0 | F83: 0
E84: 0 | F84: 0
E85: 0 | F85: 0
E86: 0 | F86: 0
E87: 0 | F87: 0
D88: =SUM(D78:D87) -> 0 | E88: =SUM(E78:E87) -> 0 | F88: =SUM(F78:F87) -> 0
A90: DEPARTMENT | B90: ITEM | C90: SUPPLIER | D90: ACTUAL NET | E90: VAT | F90: GROSS | G90: NOTES | H90: Receipt No
A91: =A15 -> Float 6 | E91: =D91*0.2 -> 0 | F91: =E91+D91 -> 0
E92: =D92*0.2 -> 0 | F92: =E92+D92 -> 0
E93: 0 | F93: 0
E94: 0 | F94: 0
E95: 0 | F95: 0
E96: 0 | F96: 0
E97: 0 | F97: 0
E98: 0 | F98: 0
E99: 0 | F99: 0
E100: 0 | F100: 0
D101: =SUM(D91:D100) -> 0 | E101: =SUM(E91:E100) -> 0 | F101: =SUM(F91:F100) -> 0
A103: DEPARTMENT | B103: ITEM | C103: SUPPLIER | D103: ACTUAL NET | E103: VAT | F103: GROSS | G103: NOTES | H103: Receipt No
A104: =A16 -> Float 7 | E104: =D104*0.2 -> 0 | F104: =D104+E104 -> 0
E105: =D105*0.2 -> 0 | F105: =D105+E105 -> 0
E106: 0 | F106: 0
E107: 0 | F107: 0
E108: 0 | F108: 0
E109: 0 | F109: 0
E110: 0 | F110: 0
E111: 0 | F111: 0
E112: 0 | F112: 0
E113: 0 | F113: 0
D114: =SUM(D104:D113) -> 0 | E114: =SUM(E104:E113) -> 0 | F114: =SUM(F104:F113) -> 0
A116: DEPARTMENT | B116: ITEM | C116: SUPPLIER | D116: ACTUAL NET | E116: VAT | F116: GROSS | G116: NOTES | H116: Receipt No
A117: =A17 -> Float 8 | E117: =D117*0.2 -> 0 | F117: =D117*E117 -> 0
E118: =D118*0.2 -> 0 | F118: =D118*E118 -> 0
E119: 0 | F119: 0
E120: 0 | F120: 0
E121: 0 | F121: 0
E122: 0 | F122: 0
E123: 0 | F123: 0
E124: 0 | F124: 0
E125: 0 | F125: 0
E126: 0 | F126: 0
D127: =SUM(D117:D126) -> 0 | E127: =SUM(E117:E126) -> 0 | F127: =SUM(F117:F126) -> 0
C130: TOTAL BUDGET COSTS: | D130: =SUM(D36+D49+D62+D75+D88+D101+D114+D127) -> 0

Sheet Costings 1
A1: Show Date | B1: ='Event Budget Summary'!B3:C3 -> 6th November 2016
A3: Project Manager | B3: ='Event Budget Summary'!B5:C5 -> Martin Atkinson
A5: Client | B5: ='Event Budget Summary'!B7:C7 -> Hull 2017
A8: COSTINGS 1
D9: Predicted
A10: A | D10: =I36 -> 0
A11: B | D11: =I49 -> 0
A12: C | D12: =I62 -> 0
A13: D | D13: =I75 -> 0
A14: E | D14: =I88 -> 0
A15: F | D15: =I101 -> 0
A16: G | D16: =I114 -> 0
A17: H | D17: =I127 -> 0
A20: Total Budget Costs | D20: =SUM(D10:D17) -> 0
A21: Overall Contingency | C21: 0 | D21: =SUM(D8)*C21 -> 0
A23: OVER / UNDER BUDGET | J23: Will turn red if over budget!
A25: DEPARTMENT | B25: ITEM | C25: SUPPLIER | D25: UNIT COST | E25: QUANTITY | F25: QUANTITY | G25: TOTAL | H25: VAT | I25: GROSS | J25: NOTES | K25: Receipt No | L25: Invoice No | M25: Signoff Date | N25: Paid Date
A26: =A10 -> A
G36: =SUM(G26:G35) -> 0 | H36: =SUM(H26:H35) -> 0 | I36: =SUM(I26:I35) -> 0
A38: DEPARTMENT | B38: ITEM | C38: SUPPLIER | D38: UNIT COST | E38: QUANTITY | F38: QUANTITY | G38: TOTAL | H38: VAT | I38: GROSS | J38: NOTES | K38: Receipt No | L38: Invoice No | M38: Signoff Date | N38: Paid Date
A39: =A11 -> B
G49: =SUM(G39:G48) -> 0 | H49: =SUM(H39:H48) -> 0 | I49: =SUM(I39:I48) -> 0
A51: DEPARTMENT | B51: ITEM | C51: SUPPLIER | D51: UNIT COST | E51: QUANTITY | F51: QUANTITY | G51: TOTAL | H51: VAT | I51: GROSS | J51: NOTES | K51: Receipt No | L51: Invoice No | M51: Signoff Date | N51: Paid Date
A52: =A12 -> C
G62: =SUM(G52:G61) -> 0 | H62: =SUM(H52:H61) -> 0 | I62: =SUM(I52:I61) -> 0
A64: DEPARTMENT | B64: ITEM | C64: SUPPLIER | D64: UNIT COST | E64: QUANTITY | F64: QUANTITY | G64: TOTAL | H64: VAT | I64: GROSS | J64: NOTES | K64: Receipt No | L64: Invoice No | M64: Signoff Date | N64: Paid Date
A65: =A13 -> D
G75: =SUM(G65:G74) -> 0 | H75: =SUM(H65:H74) -> 0 | I75: =SUM(I65:I74) -> 0
A77: DEPARTMENT | B77: ITEM | C77: SUPPLIER | D77: UNIT COST | E77: QUANTITY | F77: QUANTITY | G77: TOTAL | H77: VAT | I77: GROSS | J77: NOTES | K77: Receipt No | L77: Invoice No | M77: Signoff Date | N77: Paid Date
A78: =A14 -> E
G88: =SUM(G78:G87) -> 0 | H88: =SUM(H78:H87) -> 0 | I88: =SUM(I78:I87) -> 0
A90: DEPARTMENT | B90: ITEM | C90: SUPPLIER | D90: UNIT COST | E90: QUANTITY | F90: QUANTITY | G90: TOTAL | H90: VAT | I90: GROSS | J90: NOTES | K90: Receipt No | L90: Invoice No | M90: Signoff Date | N90: Paid Date
A91: =A15 -> F
G101: =SUM(G91:G100) -> 0 | H101: =SUM(H91:H100) -> 0 | I101: =SUM(I91:I100) -> 0
A103: DEPARTMENT | B103: ITEM | C103: SUPPLIER | D103: UNIT COST | E103: QUANTITY | F103: QUANTITY | G103: TOTAL | H103: VAT | I103: GROSS | J103: NOTES | K103: Receipt No | L103: Invoice No | M103: Signoff Date | N103: Paid Date
A104: =A16 -> G
G114: =SUM(G104:G113) -> 0 | H114: =SUM(H104:H113) -> 0 | I114: =SUM(I104:I113) -> 0
A116: DEPARTMENT | B116: ITEM | C116: SUPPLIER | D116: UNIT COST | E116: QUANTITY | F116: QUANTITY | G116: TOTAL | H116: VAT | I116: GROSS | J116: NOTES | K116: Receipt No | L116: Invoice No | M116: Signoff Date | N116: Paid Date
A117: =A17 -> H
G127: =SUM(G117:G126) -> 0 | H127: =SUM(H117:H126) -> 0 | I127: =SUM(I117:I126) -> 0

Sheet Crew Costs
A1: Show Date | B1: ='Event Budget Summary'!B3:C3 -> 6th November 2016
A3: Project Manager | B3: ='Event Budget Summary'!B5:C5 -> Martin Atkinson
A5: Client | B5: ='Event Budget Summary'!B7:C7 -> Hull 2017
A7: Name | B7: Role | C7: Half Day | D7: No. of Days | E7: Sub Total | F7: Full Day | G7: No. of Days | H7: Sub Total | I7: Travel Day | J7: No. of Days | K7: Sub Total | L7: PDs | M7: Total Cost | N7: Notes
A9: 1 | B9: CREW 1 | C9: 100 | E9: =D9*C9 -> 0 | F9: 250 | H9: =G9*F9 -> 0 | I9: 70 | J9: 0 | K9: =J9*I9 -> 0 | L9: ='PDs & Petty Cash'!B15 -> 0 | M9: =E9+H9+K9+L9 -> 0
A10: 2 | B10: CREW 2 | C10: 100 | E10: 0 | F10: 250 | H10: =G10*F10 -> 0 | I10: 70 | J10: 0 | K10: =J10*I10 -> 0 | L10: ='PDs & Petty Cash'!B22 -> 0 | M10: =E10+H10+K10+L10 -> 0
A11: 3 | B11: CREW 3 | C11: 100 | E11: 0 | F11: 250 | H11: =G11*F11 -> 0 | I11: 70 | J11: 0 | K11: =J11*I11 -> 0 | L11: ='PDs & Petty Cash'!B17 -> 0 | M11: 0
A12: 4 | B12: CREW 4 | C12: 100 | E12: 0 | F12: 250 | H12: 0 | I12: 70 | J12: 0 | K12: 0 | L12: ='PDs & Petty Cash'!B24 -> 0 | M12: 0
A13: 5 | B13: CREW 5 | C13: 100 | E13: 0 | F13: 250 | H13: 0 | I13: 70 | J13: 0 | K13: 0 | L13: ='PDs & Petty Cash'!B19 -> 0 | M13: 0
A14: 6 | B14: CREW 6 | C14: 100 | E14: 0 | F14: 250 | H14: 0 | I14: 70 | J14: 0 | K14: 0 | L14: ='PDs & Petty Cash'!B26 -> 0 | M14: 0
A15: 7 | B15: CREW 7 | C15: 100 | E15: 0 | F15: 250 | H15: 0 | I15: 70 | J15: 0 | K15: 0 | L15: ='PDs & Petty Cash'!B21 -> 0 | M15: 0
A16: 8 | B16: CREW 8 | C16: 100 | E16: 0 | F16: 250 | H16: 0 | I16: 70 | J16: 0 | K16: 0 | L16: ='PDs & Petty Cash'!B28 -> 0 | M16: 0
A17: 9 | B17: CREW 9 | C17: 100 | E17: 0 | F17: 250 | H17: 0 | I17: 70 | J17: 0 | K17: 0 | L17: ='PDs & Petty Cash'!B23 -> 0 | M17: 0
A18: 10 | B18: CREW 10 | C18: 100 | E18: 0 | F18: 250 | H18: 0 | I18: 70 | J18: 0 | K18: 0 | L18: ='PDs & Petty Cash'!B30 -> 0 | M18: 0
A19: 11 | B19: CREW 11 | C19: 100 | E19: 0 | F19: 250 | H19: 0 | I19: 70 | J19: 0 | K19: 0 | L19: ='PDs & Petty Cash'!B25 -> 0 | M19: 0
A20: 12 | B20: CREW 12 | C20: 100 | E20: 0 | F20: 250 | H20: 0 | I20: 70 | J20: 0 | K20: 0 | L20: ='PDs & Petty Cash'!B32 -> 0 | M20: 0
A21: 13 | B21: CREW 13 | C21: 100 | E21: 0 | F21: 250 | H21: 0 | I21: 70 | J21: 0 | K21: 0 | L21: ='PDs & Petty Cash'!B27 -> 0 | M21: 0
A22: 14 | B22: CREW 14 | C22: 100 | E22: 0 | F22: 250 | H22: 0 | I22: 70 | J22: 0 | K22: 0 | L22: ='PDs & Petty Cash'!B34 -> 0 | M22: 0
A23: 15 | B23: CREW 15 | C23: 100 | E23: 0 | F23: 250 | H23: 0 | I23: 70 | J23: 0 | K23: 0 | L23: ='PDs & Petty Cash'!B29 -> 0 | M23: 0
A24: 16 | B24: CREW 16 | C24: 100 | E24: 0 | F24: 250 | H24: 0 | I24: 70 | J24: 0 | K24: 0 | L24: ='PDs & Petty Cash'!B36 -> 0 | M24: 0
A25: 17 | B25: CREW 17 | C25: 100 | E25: 0 | F25: 250 | H25: 0 | I25: 70 | J25: 0 | K25: 0 | L25: ='PDs & Petty Cash'!B31 -> 0 | M25: 0
A26: 18 | B26: CREW 18 | C26: 100 | E26: 0 | F26: 250 | H26: =G26*F26 -> 0 | I26: 70 | J26: 0 | K26: =J26*I26 -> 0 | L26: ='PDs & Petty Cash'!B32 -> 0 | M26: 0
A27: 19 | B27: CREW 19 | C27: 100 | E27: 0 | F27: 250 | H27: =G27*F27 -> 0 | I27: 70 | J27: 0 | K27: =J27*I27 -> 0 | L27: ='PDs & Petty Cash'!B33 -> 0 | M27: 0
D28: =SUM(D9:D27) -> 0 | G28: =SUM(G9:G27) -> 0 | J28: =SUM(J9:J27) -> 0
E29: TOTAL STAFF COST | M29: =SUM(M9:M28) -> 0

Sheet Crew Accommodation
A1: Show Date | B1: ='Event Budget Summary'!B3:C3 -> 6th November 2016
A3: Project Manager | B3: ='Event Budget Summary'!B5:C5 -> Martin Atkinson
A5: Client | B5: ='Event Budget Summary'!B7:C7 -> Hull 2017
B7: Notes | D7: Accomodation | AH7: Notes
D8: 2017-01-01 | E8: =D8+1 -> 2017-01-02 | F8: =E8+1 -> 2017-01-03 | G8: =F8+1 -> 2017-01-04 | H8: =G8+1 -> 2017-01-05 | I8: 2017-01-06 | J8: 2017-01-07 | K8: 2017-01-08 | L8: 2017-01-09 | M8: 2017-01-10 | N8: 2017-01-11 | O8: 2017-01-12 | P8: 2017-01-13 | Q8: 2017-01-14 | R8: 2017-01-15 | S8: 2017-01-16 | T8: 2017-01-17 | U8: 2017-01-18 | V8: 2017-01-19 | W8: 2017-01-20 | X8: 2017-01-21 | Y8: 2017-01-22 | Z8: 2017-01-23 | AA8: 2017-01-24 | AB8: 2017-01-25 | AC8: 2017-01-26 | AD8: 2017-01-27 | AE8: 2017-01-28 | AF8: 2017-01-29 | AG8: 2017-01-30
D9: D | E9: D | F9: D | G9: D | H9: D | I9: D | J9: D | K9: D | L9: D | M9: D | N9: D | O9: D | P9: D | Q9: D | R9: D | S9: D | T9: D | U9: D | V9: D | W9: D | X9: D | Y9: D | Z9: D | AA9: D | AB9: D | AC9: D | AD9: D | AE9: D | AF9: D | AG9: D
A10: Crew 1
A11: Crew 2
A12: Crew 3
A13: Crew 4
A14: Crew 5
A15: Crew 6
A16: Crew 7
A17: Crew 8
A18: Crew 9
A19: Crew 10
A20: Artist 1
A21: Artist 2
A22: Artist 3
A23: Artist 4
A24: Artist 5
A25: Artist 6
A26: Artist 7
A27: Artist 8
A28: Artist 9
A29: Artist 10
A30: Artist 11
A31: Artist 12
A32: Artist 13
A33: Artist 14
A34: Artist 15
A35: Artist 16
B37: =D8 -> 2017-01-01 | C37: Rooms | D37: =SUM(D10:D35) -> 0 | J37: SUMMARY
B38: =B37+1 -> 2017-01-02 | C38: Rooms | D38: =SUM(E10:E35) -> 0
B39: =B38+1 -> 2017-01-03 | C39: Rooms | D39: =SUM(F10:F35) -> 0
B40: 2017-01-04 | C40: Rooms | D40: =SUM(G10:G35) -> 0 | J40: ROOM COST
B41: 2017-01-05 | C41: Rooms | D41: =SUM(H10:H35) -> 0
B42: 2017-01-06 | C42: Rooms | D42: =SUM(I10:I35) -> 0 | J42: TWIN COST | Q42: 55
B43: 2017-01-07 | C43: Rooms | D43: =SUM(J10:J35) -> 0
B44: 2017-01-08 | C44: Rooms | D44: =SUM(K10:K35) -> 0 | J44: ROOM QUANTITIES
B45: 2017-01-09 | C45: Rooms | D45: =SUM(L10:L35) -> 0
B46: 2017-01-10 | C46: Rooms | D46: =SUM(M10:M35) -> 0 | J46: TOTAL ROOMS | Q46: =D67 -> 0
B47: 2017-01-11 | C47: Rooms | D47: =SUM(N10:N35) -> 0
B48: 2017-01-12 | C48: Rooms | D48: =SUM(O10:O35) -> 0 | J48: TOTAL COSTS
B49: 2017-01-13 | C49: Rooms | D49: =SUM(P10:P35) -> 0
B50: 2017-01-14 | C50: Rooms | D50: =SUM(Q10:Q35) -> 0 | J50: ROOM COSTS | Q50: =SUM(Q42*Q46) -> 0
B51: 2017-01-15 | C51: Rooms | D51: =SUM(R10:R35) -> 0
B52: 2017-01-16 | C52: Rooms | D52: =SUM(S10:S35) -> 0
B53: 2017-01-17 | C53: Rooms | D53: =SUM(T10:T35) -> 0
B54: 2017-01-18 | C54: Rooms | D54: =SUM(U10:U35) -> 0
B55: 2017-01-19 | C55: Rooms | D55: =SUM(V10:V35) -> 0
B56: 2017-01-20 | C56: Rooms | D56: =SUM(W10:W35) -> 0
B57: 2017-01-21 | C57: Rooms | D57: =SUM(X10:X35) -> 0
B58: 2017-01-22 | C58: Rooms | D58: =SUM(Y10:Y35) -> 0
B59: 2017-01-23 | C59: Rooms | D59: =SUM(Z10:Z35) -> 0
B60: 2017-01-24 | C60: Rooms | D60: =SUM(AA10:AA35) -> 0
B61: 2017-01-25 | C61: Rooms | D61: =SUM(AB10:AB35) -> 0
B62: 2017-01-26 | C62: Rooms | D62: =SUM(AC10:AC35) -> 0
B63: 2017-01-27 | C63: Rooms | D63: =SUM(AD10:AD35) -> 0
B64: 2017-01-28 | C64: Rooms | D64: =SUM(AE10:AE35) -> 0
B65: 2017-01-29 | C65: Rooms | D65: =SUM(AF10:AF35) -> 0
B66: 2017-01-30 | C66: Rooms | D66: =SUM(AG10:AG35) -> 0
D67: =SUM(D37:D66) -> 0

Sheet Crew Catering
A1: Show Date | B1: ='Event Budget Summary'!B3:C3 -> 6th November 2016
A3: Project Manager | B3: ='Event Budget Summary'!B5:C5 -> Martin Atkinson
A5: Client | B5: ='Event Budget Summary'!B7:C7 -> Hull 2017
A7: Who | B7: Role | C7: Contact Number | D7: Catering
D8: Day 1 | G8: Day 2 | J8: Day 3 | M8: Day 4 | P8: Day 5 | S8: Day 6 | V8: Day 7 | Y8: Day 8 | AB8: Day 9 | AE8: Day 10
D9: B | E9: L | F9: D | G9: B | H9: L | I9: D | J9: B | K9: L | L9: D | M9: B | N9: L | O9: D | P9: B | Q9: L | R9: D | S9: B | T9: L | U9: D | V9: B | W9: L | X9: D | Y9: B | Z9: L | AA9: D | AB9: B | AC9: L | AD9: D | AE9: B | AF9: L | AG9: D
A10: ='Crew Costs'!B9 -> CREW 1
A11: ='Crew Costs'!B10 -> CREW 2
A12: ='Crew Costs'!B11 -> CREW 3
A13: ='Crew Costs'!B12 -> CREW 4
A14: ='Crew Costs'!B13 -> CREW 5
A15: ='Crew Costs'!B14 -> CREW 6
A16: ='Crew Costs'!B15 -> CREW 7
A17: ='Crew Costs'!B16 -> CREW 8
A18: ='Crew Costs'!B17 -> CREW 9
A19: ='Crew Costs'!B18 -> CREW 10
A20: ='Crew Costs'!B19 -> CREW 11
A21: ='Crew Costs'!B20 -> CREW 12
A22: ='Crew Costs'!B21 -> CREW 13
A23: ='Crew Costs'!B22 -> CREW 14
A24: ='Crew Costs'!B23 -> CREW 15
A25: ='Crew Costs'!B24 -> CREW 16
A26: ='Crew Costs'!B25 -> CREW 17
A27: ='Crew Costs'!B26 -> CREW 18
A28: ='Crew Costs'!B27 -> CREW 19
A29: CREW 20
A30: Other Crew 1
A31: Other Crew 2
A32: Other Crew 3
A33: Other Crew 4
A34: Other Crew 5
A35: Other Crew 6
A36: Other Crew 7
A37: Other Crew 8
A38: Other Crew 9
A39: Other Crew 10
A40: Other Crew 11
A41: Other Crew 12
A42: Other Crew 13
A43: Other Crew 14
A44: Other Crew 15
A45: Other Crew 16
A46: Other Crew 17
A47: Other Crew 18
A48: Other Crew 19
A49: Other Crew 20
A50: Other Crew 21
A51: Other Crew 22
A52: Other Crew 23
A53: Other Crew 24
A54: Other Crew 25
B56: Day 1 | C56: Breakfast | D56: =SUM(D10:D54) -> 0 | J56: SUMMARY
C57: Lunch | D57: =SUM(E10:E54) -> 0
C58: Dinner | D58: =SUM(F10:F54) -> 0
B59: Day 2 | C59: Breakfast | D59: =SUM(G10:G54) -> 0 | J59: MEAL COST
C60: Lunch | D60: =SUM(H10:H54) -> 0
C61: Dinner | D61: =SUM(I10:I54) -> 0 | J61: BREAKFAST COST | Q61: 7.5
B62: Day 3 | C62: Breakfast | D62: =SUM(J10:J54) -> 0
C63: Lunch | D63: =SUM(K10:K54) -> 0 | J63: LUNCH COST | Q63: 15
C64: Dinner | D64: =SUM(L10:L54) -> 0
B65: Day 4 | C65: Breakfast | D65: =SUM(M10:M54) -> 0 | J65: DINNER COST | Q65: 22.5
C66: Lunch | D66: =SUM(N10:N54) -> 0
C67: Dinner | D67: =SUM(O10:O54) -> 0 | J67: MEAL QUANTITIES
B68: Day 5 | C68: Breakfast | D68: =SUM(P10:P54) -> 0
C69: Lunch | D69: =SUM(Q10:Q54) -> 0 | J69: TOTAL BREAKFAST | Q69: =SUM(D56+D59+D62+D65+D68+D71+D74+D77+D80+D83) -> 0
C70: Dinner | D70: =SUM(R10:R54) -> 0
B71: Day 6 | C71: Breakfast | D71: =SUM(S10:S54) -> 0 | J71: TOTAL LUNCH | Q71: =SUM(D57+D60+D63+D66+D69+D72+D75+D78+D81+D84) -> 0
C72: Lunch | D72: =SUM(T10:T54) -> 0
C73: Dinner | D73: =SUM(U10:U54) -> 0 | J73: TOTAL DINNER | Q73: =SUM(D58+D61+D64+D67+D70+D73+D76+D79+D82+D85) -> 0
B74: Day 7 | C74: Breakfast | D74: =SUM(V10:V54) -> 0
C75: Lunch | D75: =SUM(W10:W54) -> 0 | J75: TOTAL COSTS
C76: Dinner | D76: =SUM(X10:X54) -> 0
B77: Day 8 | C77: Breakfast | D77: =SUM(Y10:Y54) -> 0 | J77: BREAKFAST COST | Q77: =SUM(Q61*Q69) -> 0
C78: Lunch | D78: =SUM(Z10:Z54) -> 0
C79: Dinner | D79: =SUM(AA10:AA54) -> 0 | J79: LUNCH COST | Q79: =SUM(Q63*Q71) -> 0
B80: Day 9 | C80: Breakfast | D80: =SUM(AB10:AB54) -> 0
C81: Lunch | D81: =SUM(AC10:AC54) -> 0 | J81: DINNER COST | Q81: =SUM(Q65*Q73) -> 0
C82: Dinner | D82: =SUM(AD10:AD54) -> 0
B83: Day 10 | C83: Breakfast | D83: =SUM(AE10:AE54) -> 0
C84: Lunch | D84: =SUM(AF10:AF54) -> 0 | J84: TOTAL MEALS COST | Q84: =SUM(Q77+Q79+Q81) -> 0
C85: Dinner | D85: =SUM(AG10:AG54) -> 0

Sheet PDs & Petty Cash
A2: Show Date | B2: ='Event Budget Summary'!B3:C3 -> 6th November 2016
A4: Project Manager | B4: ='Event Budget Summary'!B5:C5 -> Martin Atkinson
A6: Client | B6: ='Event Budget Summary'!B7:C7 -> Hull 2017
A9: Crew | B9: £ | C9: Dates | D9: Date received | E9: Signed
A10: ='Crew Costs'!B9 -> CREW 1
A15: TOTAL | B15: =SUM(B10:B14) -> 0
A17: ='Crew Costs'!B10 -> CREW 2
A22: TOTAL | B22: =SUM(B17:B21) -> 0
A24: ='Crew Costs'!B11 -> CREW 3
A29: TOTAL | B29: =SUM(B24:B28) -> 0
A31: ='Crew Costs'!B12 -> CREW 4
A36: TOTAL | B36: =SUM(B31:B35) -> 0
A38: ='Crew Costs'!B13 -> CREW 5
A42: TOTAL | B42: =SUM(B38:B41) -> 0
A44: ='Crew Costs'!B20 -> CREW 12
A48: TOTAL | B48: =SUM(B44:B47) -> 0
A50: ='Crew Costs'!B26 -> CREW 18
A54: TOTAL | B54: =SUM(B50:B53) -> 0
A56: ='Crew Costs'!#REF! -> 
A60: TOTAL | B60: =SUM(B56:B59) -> 0
A62: ='Crew Costs'!#REF! -> 
A66: TOTAL | B66: =SUM(B62:B65) -> 0
A68: ='Crew Costs'!B29 -> 0
A72: TOTAL | B72: =SUM(B68:B71) -> 0
A74: ='Crew Costs'!B35 -> 0
A78: TOTAL | B78: =SUM(B74:B77) -> 0
A80: ='Crew Costs'!B40 -> 0
A84: TOTAL | B84: =SUM(B80:B83) -> 0
A86: ='Crew Costs'!B46 -> 0
A90: TOTAL | B90: =SUM(B86:B89) -> 0
A92: ='Crew Costs'!B51 -> 0
A96: TOTAL | B96: =SUM(B92:B95) -> 0
A98: ='Crew Costs'!B56 -> 0
A102: TOTAL | B102: =SUM(B98:B101) -> 0
A104: ='Crew Costs'!B62 -> 0
A108: TOTAL | B108: =SUM(B104:B107) -> 0
A110: ='Crew Costs'!B67 -> 0
A114: TOTAL | B114: =SUM(B110:B113) -> 0
A118: PD's | B118: =B78+B72+B66+B60+B54+B48+B42+B36+B29+B22+B15 -> 0
A119: Petty Cash | B119: 0
A121: GRAND TOTAL | B121: =B119+B118 -> 0

Sheet Passes & Radios
A1: Project Title | B1: ='Event Budget Summary'!B1:C1 -> Substance
A3: Show Date | B3: ='Event Budget Summary'!B3:C3 -> 6th November 2016
A5: Project Manager | B5: ='Event Budget Summary'!B5:C5 -> Martin Atkinson
B7: ='Event Budget Summary'!B7:C7 -> Hull 2017
A9: Name | B9: Role | C9: Contact Number | D9: Passes | I9: Radio's
D10: Pass Type | I10: Radio | J10: Ear Piece | K10: Noise Cancellation | L10: Fist Mic | M10: Pouch
D11: 1 | E11: 2 | F11: 3 | G11: 4 | H11: 5
A12: ='Crew Catering'!A10 -> CREW 1 | B12: ='Crew Catering'!B10 -> 0 | C12: ='Crew Catering'!C10 -> 0
A13: ='Crew Catering'!A11 -> CREW 2 | B13: ='Crew Catering'!B11 -> 0 | C13: ='Crew Catering'!C11 -> 0
A14: ='Crew Catering'!A12 -> CREW 3 | B14: ='Crew Catering'!B12 -> 0 | C14: ='Crew Catering'!C12 -> 0
A15: ='Crew Catering'!A13 -> CREW 4 | B15: ='Crew Catering'!B13 -> 0 | C15: ='Crew Catering'!C13 -> 0
A16: ='Crew Catering'!A14 -> CREW 5 | B16: ='Crew Catering'!B14 -> 0 | C16: ='Crew Catering'!C14 -> 0
A17: ='Crew Catering'!A15 -> CREW 6 | B17: ='Crew Catering'!B15 -> 0 | C17: ='Crew Catering'!C15 -> 0
A18: ='Crew Catering'!A16 -> CREW 7 | B18: ='Crew Catering'!B16 -> 0 | C18: ='Crew Catering'!C16 -> 0
A19: ='Crew Catering'!A17 -> CREW 8 | B19: ='Crew Catering'!B17 -> 0 | C19: ='Crew Catering'!C17 -> 0
A20: ='Crew Catering'!A18 -> CREW 9 | B20: ='Crew Catering'!B18 -> 0 | C20: ='Crew Catering'!C18 -> 0
A21: ='Crew Catering'!A19 -> CREW 10 | B21: ='Crew Catering'!B19 -> 0 | C21: ='Crew Catering'!C19 -> 0
A22: ='Crew Catering'!A20 -> CREW 11 | B22: ='Crew Catering'!B20 -> 0 | C22: ='Crew Catering'!C20 -> 0
A23: ='Crew Catering'!A21 -> CREW 12 | B23: ='Crew Catering'!B21 -> 0 | C23: ='Crew Catering'!C21 -> 0
A24: ='Crew Catering'!A22 -> CREW 13 | B24: ='Crew Catering'!B22 -> 0 | C24: ='Crew Catering'!C22 -> 0
A25: ='Crew Catering'!A23 -> CREW 14 | B25: ='Crew Catering'!B23 -> 0 | C25: ='Crew Catering'!C23 -> 0
A26: ='Crew Catering'!A24 -> CREW 15 | B26: ='Crew Catering'!B24 -> 0 | C26: ='Crew Catering'!C24 -> 0
A27: ='Crew Catering'!A25 -> CREW 16 | B27: ='Crew Catering'!B25 -> 0 | C27: ='Crew Catering'!C25 -> 0
A28: ='Crew Catering'!A26 -> CREW 17 | B28: ='Crew Catering'!B26 -> 0 | C28: ='Crew Catering'!C26 -> 0
A29: ='Crew Catering'!A27 -> CREW 18 | B29: ='Crew Catering'!B27 -> 0 | C29: ='Crew Catering'!C27 -> 0
A30: ='Crew Catering'!A28 -> CREW 19 | B30: ='Crew Catering'!B28 -> 0 | C30: ='Crew Catering'!C28 -> 0
A31: ='Crew Catering'!A29 -> CREW 20 | B31: ='Crew Catering'!B29 -> 0 | C31: ='Crew Catering'!C29 -> 0
A32: ='Crew Catering'!A30 -> Other Crew 1 | B32: ='Crew Catering'!B30 -> 0 | C32: ='Crew Catering'!C30 -> 0
A33: ='Crew Catering'!A31 -> Other Crew 2 | B33: ='Crew Catering'!B31 -> 0 | C33: ='Crew Catering'!C31 -> 0
A34: ='Crew Catering'!A32 -> Other Crew 3 | B34: ='Crew Catering'!B32 -> 0 | C34: ='Crew Catering'!C32 -> 0
A35: ='Crew Catering'!A33 -> Other Crew 4 | B35: ='Crew Catering'!B33 -> 0 | C35: ='Crew Catering'!C33 -> 0
A36: ='Crew Catering'!A34 -> Other Crew 5 | B36: ='Crew Catering'!B34 -> 0 | C36: ='Crew Catering'!C34 -> 0
A37: ='Crew Catering'!A35 -> Other Crew 6 | B37: ='Crew Catering'!B35 -> 0 | C37: ='Crew Catering'!C35 -> 0
A38: ='Crew Catering'!A36 -> Other Crew 7 | B38: ='Crew Catering'!B36 -> 0 | C38: ='Crew Catering'!C36 -> 0
A39: ='Crew Catering'!A37 -> Other Crew 8 | B39: ='Crew Catering'!B37 -> 0 | C39: ='Crew Catering'!C37 -> 0
A40: ='Crew Catering'!A38 -> Other Crew 9 | B40: ='Crew Catering'!B38 -> 0 | C40: ='Crew Catering'!C38 -> 0
A41: ='Crew Catering'!A39 -> Other Crew 10 | B41: ='Crew Catering'!B39 -> 0 | C41: ='Crew Catering'!C39 -> 0
A42: ='Crew Catering'!A40 -> Other Crew 11 | B42: ='Crew Catering'!B40 -> 0 | C42: ='Crew Catering'!C40 -> 0
A43: ='Crew Catering'!A41 -> Other Crew 12 | B43: ='Crew Catering'!B41 -> 0 | C43: ='Crew Catering'!C41 -> 0
A44: ='Crew Catering'!A42 -> Other Crew 13 | B44: ='Crew Catering'!B42 -> 0 | C44: ='Crew Catering'!C42 -> 0
A45: ='Crew Catering'!A43 -> Other Crew 14 | B45: ='Crew Catering'!B43 -> 0 | C45: ='Crew Catering'!C43 -> 0
A46: ='Crew Catering'!A44 -> Other Crew 15 | B46: ='Crew Catering'!B44 -> 0 | C46: ='Crew Catering'!C44 -> 0
A47: ='Crew Catering'!A45 -> Other Crew 16 | B47: ='Crew Catering'!B45 -> 0 | C47: ='Crew Catering'!C45 -> 0
A48: ='Crew Catering'!A46 -> Other Crew 17 | B48: ='Crew Catering'!B46 -> 0 | C48: ='Crew Catering'!C46 -> 0
A49: ='Crew Catering'!A47 -> Other Crew 18 | B49: ='Crew Catering'!B47 -> 0 | C49: ='Crew Catering'!C47 -> 0
A50: ='Crew Catering'!A48 -> Other Crew 19 | B50: ='Crew Catering'!B48 -> 0 | C50: ='Crew Catering'!C48 -> 0
A51: ='Crew Catering'!A49 -> Other Crew 20 | B51: ='Crew Catering'!B49 -> 0 | C51: ='Crew Catering'!C49 -> 0
A52: ='Crew Catering'!A50 -> Other Crew 21 | B52: ='Crew Catering'!B50 -> 0 | C52: ='Crew Catering'!C50 -> 0
A53: ='Crew Catering'!A51 -> Other Crew 22 | B53: ='Crew Catering'!B51 -> 0 | C53: ='Crew Catering'!C51 -> 0
A54: ='Crew Catering'!A52 -> Other Crew 23 | B54: ='Crew Catering'!B52 -> 0 | C54: ='Crew Catering'!C52 -> 0
A55: ='Crew Catering'!A53 -> Other Crew 24 | B55: ='Crew Catering'!B53 -> 0 | C55: ='Crew Catering'!C53 -> 0
A56: ='Crew Catering'!A54 -> Other Crew 25 | B56: ='Crew Catering'!B54 -> 0 | C56: ='Crew Catering'!C54 -> 0
A57: ='Crew Catering'!A55 -> 0 | B57: ='Crew Catering'!B55 -> 0 | C57: ='Crew Catering'!C55 -> 0
A59: Radio Totals | C59: Pass Totals | G59: Access Details
A61: Handsets | B61: =SUM(I12:I57) -> 0 | C61: Type 1 | D61: =SUM(D12:D57) -> 0 | G61: Access
A62: Ear Piece | B62: =SUM(J12:J57) -> 0 | C62: Type 2 | D62: =SUM(E12:E57) -> 0 | G62: Access
A63: Noise Cancellation | B63: =SUM(K12:K57) -> 0 | C63: Type 3 | D63: =SUM(F12:F57) -> 0 | G63: Access
A64: Fist/Parrot Mic | B64: =SUM(L12:L57) -> 0 | C64: Type 4 | D64: =SUM(G12:G57) -> 0 | G64: Access
A65: Leather Pouch | B65: =SUM(M12:M57) -> 0 | C65: Type 5 | D65: =SUM(H12:H57) -> 0 | G65: Access
